Cogmind - Beta 15 @@@ ROGUE MODE // 2025.05.21 @ 18:03:49 Player: Nalesnig Result: Destroyed by 2A-3GC(R) with Subdweller Laser Performance ------------- Evolutions (0) 0 Regions Visited (2) 400 Robots Destroyed (19) 95 Value Destroyed (407) 407 Prototype IDs (3) 60 Alien Tech Used (0) 0 Bonus (0) 0 TOTAL SCORE: 962 Bonus ------- None Cogmind --------- Core Integrity 0/250 Matter 245/300 Energy 125/125 System Corruption 0% Temperature Cool (6) Movement Core (450) Ox8 Location -10/Subcaves Parts ------- > --- POWER (1) -------- Light Ion Engine > --- PROPULSION (2) --- (None) > --- UTILITY (2) ------ Large Storage Unit Propulsion Shielding > --- WEAPON (2) ------- Small Laser Small Laser > --- INVENTORY (15) --- Wheel Signal Interpreter Mining Laser Hammer Peak State ------------ > --- POWER ------------ Ion Engine > --- PROPULSION ------- Light Treads Light Treads > --- UTILITY ---------- Large Storage Unit Seismic Detector > --- WEAPON ----------- EM Pulse Gun Light Assault Rifle > --- INVENTORY -------- Light Ion Engine Wheel Compact Wheel Signal Interpreter Propulsion Shielding Small Laser Small Laser Assault Rifle Mining Laser Hammer [Rating: 8] Favorites ----------- Power Ion Engine Engine Ion Engine Propulsion Light Treads Treads Light Treads Wheel Compact Wheel Utility Seismic Detector Device Seismic Detector Storage Small Storage Unit Protection Propulsion Shielding Weapon Assault Rifle Energy Gun EM Pulse Gun Ballistic Gun Assault Rifle Impact Weapon Hammer Build | -11 -10 -10 ------- Run | Yrd Mat Sub Slots Evolved . | . . . Power . | . . . Propulsion . | . . . Utility . | . . . Weapon . | . . . Parts Attached 17 | 7 4 6 Power 2 | 1 . 1 Engine 2 | 1 . 1 Core . | . . . Reactor . | . . . Propulsion 3 | 2 . 1 Treads 2 | 2 . . Leg . | . . . Wheel 1 | . . 1 Hover . | . . . Flight . | . . . Utility 5 | 2 2 1 Device 2 | 1 1 . Storage 2 | 1 1 . Processor . | . . . Hackware . | . . . Protection 1 | . . 1 Artifact . | . . . Weapon 7 | 2 2 3 Energy Gun 3 | . 1 2 Energy Cannon . | . . . Ballistic Gun 3 | 2 . 1 Ballistic Cannon . | . . . Launcher . | . . . Special Weapon . | . . . Impact Weapon 1 | . 1 . Slashing Weapon . | . . . Piercing Weapon . | . . . Special Melee Weapon . | . . . Unidentified Prototypes . | . . . Parts Lost 10 | . 2 8 Power 1 | . . 1 Propulsion 3 | . . 3 Utility 2 | . 1 1 Weapon 4 | . 1 3 Highest Loss Streak 5 | . 2 5 To Critical Strikes . | . . . Average Backups 6 | 2 7 8 Power . | . 1 . Propulsion 1 | 1 2 1 Utility . | . . 1 Weapon 3 | . 3 4 Tool/Special . | . . . Unused Backups 3 | . . 3 Power . | . . . Propulsion 1 | . . 1 Utility 1 | . . 1 Weapon 1 | . . 1 Tool/Special . | . . . Average Slot Usage (%) 96 | . 98 88 Engine 13 | . 14 9 Treads 26 | . 28 21 Wheel 1 | . . 5 Device 12 | . 13 8 Storage 14 | . 14 14 Energy Gun 3 | . 2 9 Ballistic Gun 19 | . 20 14 Impact Weapon 4 | . 4 3 Peak Build Rating 8 | 7 8 8 Average Rating 6 | 5 7 6 On Entrance 5 | . 7 8 Naked Turns . | . . . Heaviest Build 30 | 14 30 29 Greatest Support 40 | 40 40 40 Greatest Overweight (x) 1 | . . 1 Average Overweight (x) . | . . . Largest Inventory Capacity 15 | 8 15 15 Average Capacity 11 | 7 10 15 Most Carried 10 | 4 10 10 Average Carried 6 | 2 7 8 Final Capacity 15 | 8 15 15 Final Carried 10 | 4 10 4 Class Distribution -------------------- 100% | Mutant Dominant Class ---------------- Mutant | -10/Materials Mutant | -10/Subcaves Resources | -11 -10 -10 ----------- Run | Yrd Mat Sub Matter Collected 470 | 292 178 . Remotely . | . . . Salvage Created 533 | 45 451 37 Parts 35 | 6 28 1 Haulers Intercepted . | . . . Recyclers Shooed 1 | 1 . . Parts Field Recycled . | . . . Retrieved Matter . | . . . Parts Self-Destructed 8 | . . 8 Prevented . | . . . Kills | -11 -10 -10 ------- Run | Yrd Mat Sub Combat Hostiles Destroyed 15 | . 14 1 Melee 2 | . 2 . Guns 12 | . 11 1 Classes Destroyed 6 | 1 4 1 Tunneler 2 | 2 . . Operator 1 | . 1 . Watcher 1 | . 1 . Swarmer 7 | . 7 . Grunt 7 | . 7 . Subdweller 1 | . . 1 Best Kill Streak 5 | 1 5 1 Combat Bots Only 5 | . 5 1 Max Kills in Single Turn 2 | 1 2 1 Gunslinging 1 | . 1 . Exploded . | . . . Melee 1 | . 1 . Uniques/NPCs Destroyed . | . . . Combat | -11 -10 -10 -------- Run | Yrd Mat Sub Hostile Shots Fired 121 | . 71 50 Missed 30 | . 18 12 Hits 91 | . 53 38 Projectile 91 | . 53 38 Critical Strikes 2 | . 1 1 Actively Blocked 1 | . . 1 Damage Taken 1365 | . 522 843 Core 259 | . 81 178 Absorbed by Shields . | . . . Redirected to Shielding 28 | . . 28 Core Remaining (%) 100 | 100 . . Volleys Fired 50 | 8 28 14 Largest 2 | 2 2 2 Hottest 80 | 40 40 80 Shots Fired 99 | 16 55 28 Gun 99 | 16 55 28 Cannon . | . . . Launcher . | . . . Special . | . . . Kinetic 84 | 16 54 14 Thermal 10 | . . 10 Explosive . | . . . Electromagnetic 5 | . 1 4 Robot Hit Streak 22 | 3 8 22 Robot Miss Streak 5 | 2 5 2 Penetration Max . | . . . Secondary Targets 3 | . 3 . Max Gunslinging Chain 1 | . 1 . Shots Hit Robots 85 | 8 51 26 Core Hits 27 | 3 22 2 Critical Kills 1 | . . 1 Critical Parts Destroyed . | . . . Critical Strikes 1 | . . 1 Destroy 1 | . . 1 Melee Attacks 32 | . 29 3 Impact 32 | . 29 3 Slashing . | . . . Piercing . | . . . Sneak Attacks 2 | . 2 . Combat Hostiles 1 | . 1 . Follow-up Attacks . | . . . Damage Inflicted 1184 | 104 751 329 Guns 753 | 104 389 260 Cannons . | . . . Explosions . | . . . Melee 431 | . 362 69 Ramming . | . . . Kinetic 606 | 104 376 126 Thermal 103 | . . 103 Explosive . | . . . Electromagnetic 44 | . 13 31 Impact 431 | . 362 69 Slashing . | . . . Piercing . | . . . Highest Corruption . | . . . Average Corruption . | . . . Corruption Purged . | . . . Corruption Blocked . | . . . Overload Shots . | . . . Overflow Damage 58 | . 58 . Projectiles . | . . . Explosions . | . . . Melee 58 | . 58 . Knockbacks 3 | . 2 1 Impact 3 | . 2 1 Kinetic . | . . . Secondary . | . . . Self-Inflicted Damage . | . . . Shots . | . . . Rammed . | . . . Targets Rammed . | . . . Kicked . | . . . Crushed . | . . . Highest Temperature 12 | . 12 . Average Temperature 7 | . 7 . Received Heat Transfer 423 | . 177 246 Siege Activations . | . . . Martial Activations . | . . . Shielding Activations . | . . . Robots Disrupted . | . . . Combat Hostiles . | . . . Robots Corrupted 1 | . 1 . Combat Hostiles 1 | . 1 . Parts Fried . | . . . Impact Corruptions 3 | . 3 . Robots Melted . | . . . Combat Hostiles . | . . . Parts Melted . | . . . Heat Transferred 225 | . . 225 Parts Sabotaged . | . . . Parts Stolen . | . . . Parts Stripped . | . . . Power Chain Reactions . | . . . Alert | -11 -10 -10 ------- Run | Yrd Mat Sub Maximum Alert Level . | . . . Low Security (%) 100 | 100 100 . Level 1 . | . . . Level 2 . | . . . Level 3 . | . . . Level 4 . | . . . Level 5 . | . . . High Security . | . . . Max Security . | . . . Peak Influence 124 | 5 124 . Initial . | . . . Average 40 | . 46 . Influence Increases 436 | 10 426 . Destroy 0b10 Robot/C 280 | . 280 . Destroy 0b10 Robot/NC 20 | 10 10 . Destroy Leader 42 | . 42 . Successful Hack 25 | . 25 . Destroy Structure 9 | . 9 . Lose Combat Pursuer 60 | . 60 . Influence Decreases 436 | 10 420 6 Entered New Map 4 | . . 4 Time Decay 412 | 10 400 2 Lost Part 20 | . 20 . Squads Dispatched 1 | . 1 . Investigation 1 | . 1 . Extermination . | . . . Reinforcement . | . . . Assault . | . . . Garrison . | . . . Intercept . | . . . Searches Triggered . | . . . Construction Impeded . | . . . Haulers Reinforced . | . . . Active Scanning Responses . | . . . Cargo Convoy Interrupts . | . . . Stealth | -11 -10 -10 --------- Run | Yrd Mat Sub Distress Signals 2 | . 2 . Communications Jammed . | . . . Distress Signals . | . . . Times Spotted 31 | . 26 5 Peak Tracking Total 5 | . 4 5 Tactical Retreats 4 | . 3 1 Traps | -11 -10 -10 ------- Run | Yrd Mat Sub Traps Triggered 1 | . 1 . Indirectly . | . . . Trap Hack Attempts . | . . . Triggered . | . . . Disarmed . | . . . Reprogrammed . | . . . Reused . | . . . Traps Extracted . | . . . Installed . | . . . Triggered . | . . . Machines | -11 -10 -10 ---------- Run | Yrd Mat Sub Machines Disabled . | . . . Max in Single Turn . | . . . Machines Repaired . | . . . Machines Dismantled . | . . . Machines Sabotaged . | . . . Overloaded Fab Kills . | . . . Hacking | -11 -10 -10 --------- Run | Yrd Mat Sub Machines Accessed 6 | . 6 . Terminals 6 | . 6 . Fabricators . | . . . Repair Stations . | . . . Recycling Units . | . . . Scanalyzers . | . . . Garrison Access . | . . . Total Hacks 19 | . 19 . Successful 8 | . 8 . Failed 11 | . 11 . Catastrophic 6 | . 6 . Database Lockouts . | . . . Manual 6 | . 6 . Terminals 19 | . 19 . Fabricators . | . . . Repair Stations . | . . . Recycling Units . | . . . Scanalyzers . | . . . Garrison Access . | . . . Terminal Hacks 8 | . 8 . Prototype ID Bank 2 | . 2 . Terminal Index 1 | . 1 . Locate Traps 1 | . 1 . Hauler Manifests 1 | . 1 . Zone Layout 3 | . 3 . Fabricator Hacks . | . . . Repair Station Hacks . | . . . Recycling Unit Hacks . | . . . Scanalyzer . | . . . Garrison Access Hacks . | . . . Unauthorized Hacks . | . . . Terminals . | . . . Fabricators . | . . . Repair Stations . | . . . Recycling Units . | . . . Scanalyzers . | . . . Garrison Access . | . . . Data Cores Recovered 1 | . 1 . Used . | . . . Hacking Detections 6 | . 6 . Full Trace Events . | . . . Feedback Events . | . . . Feedback Blocked . | . . . Robot Schematics Acquired . | . . . Robots Built . | . . . Authchips . | . . . Time . | . . . Total Robot Build Rating . | . . . Part Schematics Acquired . | . . . Parts Built . | . . . Authchips . | . . . Time . | . . . Total Part Build Rating . | . . . Parts Repaired . | . . . Time . | . . . Parts Recycled . | . . . Recycled Matter . | . . . Retrieved Matter . | . . . Retrieved Components . | . . . Parts Scanalyzed . | . . . Part Schematics Acquired . | . . . Parts Damaged . | . . . Bothacking | -11 -10 -10 ------------ Run | Yrd Mat Sub Used RIF Installer . | . . . Robots Hacked . | . . . Non-combat . | . . . Combat . | . . . Robot Hacks Applied . | . . . Relay Couplers Released . | . . . Fabnet Peak Effective % . | . . . Robots Rewired . | . . . Allies Hacked . | . . . Hacks Repelled . | . . . Allies | -11 -10 -10 -------- Run | Yrd Mat Sub Total Allies . | . . . Largest Group . | . . . Highest-Rated Group . | . . . Highest-Rated Ally . | . . . Total Orders . | . . . Ally Attacks . | . . . Total Damage . | . . . Kills . | . . . Allies Corrupted . | . . . Allies Melted . | . . . Intel | -11 -10 -10 ------- Run | Yrd Mat Sub Active Infowar (turns) 1104 | 8 915 181 Seismic 1104 | 8 915 181 Robot Analysis Total . | . . . Derelict Logs Recovered . | . . . Drone Launches . | . . . Drone Recoveries . | . . . Exploration | -11 -10 -10 ------------- Run | Yrd Mat Sub Turns Passed 1425 | 147 985 293 Spaces Moved 676 | 72 441 163 Core 4 | 4 . . Treads 602 | 68 441 93 Legs . | . . . Wheels 70 | . . 70 Hover . | . . . Flight . | . . . Fastest Speed 50 | 50 160 115 Average Speed 154 | 153 160 141 Slowest Speed 240 | 160 160 240 Overloaded Moves . | . . . Propulsion Burnouts . | . . . Robots Hopped . | . . . Potential Cave-ins . | . . . Cave-ins Triggered . | . . . Exploration Rate (%) 37 | 4 93 15 Regions Visited 2 Branch Regions 1 Pre-discovered Areas . | . . . Known Exits Taken . | . . . Unknown Exits Taken 2 | 1 1 . Scrap Searched . | . . . Spaces Dug 10 | . 9 1 Terrain Destroyed 10 | . 9 1 Melee 10 | . 9 1 Projectile . | . . . AOE . | . . . Terrain Rammed . | . . . Walls Destroyed . | . . . Machines Disabled . | . . . Actions | -11 -10 -10 --------- Run | Yrd Mat Sub Total 903 | 90 619 194 Wait 114 | . 107 7 Move 674 | 71 440 163 Hop . | . . . Pick Up 11 | 4 7 . Fast Attach 8 | 7 1 . Attach 7 | . 1 6 Detach . | . . . Swap 6 | . 5 1 Drop 1 | . 1 . Fire 50 | 8 28 14 Melee 32 | . 29 3 Ram . | . . . Kick . | . . . Crush . | . . . Escape Stasis . | . . . Rewire . | . . . Trap . | . . . Miscellaneous . | . . . Route ------- -11/Scrapyard -10/Materials (discovered 6 exits: [*Mat x3] / [*Min x2] / [*Sub]) -10/Subcaves History --------- Turn | Location | Event 7 | -11/Scrapyard | Discovered new exit (range 15) 148 | -11/Scrapyard | Entered Materials 313 | -10/Materials | Build established: Mutant 344 | -10/Materials | Discovered new exit (range 11) 501 | -10/Materials | Discovered new exit (range 16) 673 | -10/Materials | Discovered new exit (range 9) 811 | -10/Materials | Discovered new exit (range 13) 858 | -10/Materials | Discovered new exit (range 8) 1049 | -10/Materials | Discovered new exit (range 15) 1133 | -10/Materials | Entered Subcaves 1307 | -10/Subcaves | Core integrity fell below 50% 1345 | -10/Subcaves | Lost 5 parts (1p1n1u2w) 1425 | -10/Subcaves | Core integrity fell below 20% 1426 | -10/Subcaves | Destroyed by 2A-3GC(R) with Subdweller Laser Last Messages --------------- recycling unit. 01041_ Acquired Seismic Detector. 01048_ Acquired Assault Rifle. 01049_ EXIT=FOUND 01113_ Acquired 20 matter. LOCATION=UNKNOWN AMBIENT_HEAT=-10 GOAL=ESCAPE 01290_ EM Pulse Gun destroyed. 01298_ Lgt. Treads destroyed. 01305_ V2-GFD(R) suffers critical hit (Destroy). 01305_ V2-GFD(R) destroyed. 01306_ Ion Engine destroyed. 01310_ Subatomizers dissect the Sub. Optics. 01310_ Lgt. Assault Rifle destroyed. 01314_ Seismic Detector destroyed. 01404_ 0N-CVW(R) knocked back. 01407_ Lgt. Treads destroyed. 01409_ Assault Rifle destroyed. 01412_ Com. Wheel destroyed. Map ----- +----------------------------------------------------+ | | | | | | | ?????????????????????????????????????????????????? | | ?????????????????????????????????????????????????? | | ?????????????????????????????????????????????????? | | ?????????????????????????????????????????????????? | | ?????????????????????????????????????????????????? | | ?????????????????????????????????????????????????? | | ?????????????????????????????????????????????????? | | ?????????????????????????????????????????????????? | | ?????????????????????????????????????????????????? | | ?????????????????????????????????????????????????? | | ??? #???????###??????????????????????????????????? | | ???? ?#####" ???????????????????????????????????? | | ?????? # ????????????????????????????????????? | | ??????? ##????????????????????????????????????? | | ???????## "#????????????????????####????????????? | | ?###?###" "###??##??????###?????# ###??????????? | | ## ### " ### ###???## #?????# ##?????????? | | ###?# ##???## #?????????? | | ####"####### ##? ### ##??# #?????????? | | ## ##???## ##??? ## #### #??????????? | | ##???## ###????#;# ## #??????????? | | #????# ##??????# #?# ##?????????? | | # #????# ##??????# @ ### #?????????? | | ## ##???## ##?????##; R ## #??????????? | | ## #???## ######?## R ##??????????? | | # ##?### ### ####???????????? | | ##?# ## # # #??????????????? | | ##??## ## ## ### #??????????????? | | #????# ### ### ## #?## ?????????????? | | #??# #####?###?# ## #??## #????????????? | | #?# #??????????# ## ##??# ##????????????? | | #?# ??????????## ## #### #?????????????? | | ## ????????### ## #????????????? | | ### ?????????# ?????????? | | ##?# ?? ?????????? | | ##??# ## ###?????????? | | #?????? ## ############?####???????????? | | ?????? ??#####????????????????????????????? | | #??????? ?????????????????????????????????????? | | ???????? #???????????????????????????????????????? | | ?????????????????????????????????????????????????? | | ?????????????????????????????????????????????????? | | ?????????????????????????????????????????????????? | | ?????????????????????????????????????????????????? | | ?????????????????????????????????????????????????? | | ?????????????????????????????????????????????????? | | ?????????????????????????????????????????????????? | +----------------------------------------------------+ Best States ------------- Heat Dissipation 25 Energy Generation 10 Energy Capacity 250 Matter Stores 300 Matter Capacity 300 Sight Range 16 Terrain Scan Density 10 Propulsion Shielding 33 Evasion (%) 40 Recoil Reduction 2 Item Schematics ----------------- None Robot Schematics ------------------ None Fabricated ------------ Nothing Repaired ---------- Nothing Alien Tech Used ----------------- None Achievements -------------- None Challenges ------------ None Game ------ Seed LobotomySignalBlade Manual? 0 Play Time 00:12:41 Cumulative 44.5 hours Start 2025.05.21 @ 17:52:55 End 2025.05.21 @ 18:03:49 Sessions 1 Manual Loads 0 Difficulty Rogue Special Mode None Game No. 51 Rogue 51 Adventurer 0 Explorer 0 Win Type - Total 0 Types 0/0/0/0/0/0/0/0/0/0 Lore% 49 Gallery% 34 Achievement% 35 Wizard Run 0 Options --------- Layout 1 ASCII 0 Keyboard 0 Movement Mouse Keybinds 0 Fullscreen 1 Font 48/Smallcaps Map View 50x35 Zoom Use 0% Tactical HUD 1 Map Filters NONE Filters NONE Steam 1 RUN: 4c1b9ad0-9f94-4a5b-970d-1036db0f5c05